fUSD/lending_fUSD_20240817
["ID","MTS","AMOUNT","RATE_DAILY","PERIOD"]
[335178698,1723938639240,-500.0,0.00010887,2]
[335178699,1723938639249,-1286.49,0.00010887,2]
[335178700,1723938639258,-1286.49,0.00010887,2]
[335178701,1723938639267,-590.69,0.00010887,2]
[335178702,1723938639276,-590.69,0.00010887,2]
[335178703,1723938639286,-500.0,0.00010887,2]
[335178704,1723938639296,-500.0,0.00010887,2]
[335178705,1723938639306,-581.35,0.00010887,2]
[335178706,1723938639315,-581.35,0.00010887,2]
[335178707,1723938639326,-500.0,0.00010887,2]
[335178708,1723938639337,-500.0,0.00010887,2]
[335178709,1723938639348,-500.0,0.00010887,2]
[335178710,1723938639357,-500.0,0.00010887,2]
[335178711,1723938639367,-500.0,0.00010887,2]
[335178712,1723938639376,-500.0,0.00010887,2]
[335178713,1723938639388,-500.0,0.00010887,2]
[335178714,1723938639397,-500.0,0.00010887,2]
[335178715,1723938639406,-500.0,0.00010887,2]
[335178716,1723938639415,-500.0,0.00010887,2]
[335178717,1723938639424,-500.0,0.00010887,2]
[335178718,1723938639433,-500.0,0.00010887,2]
[335178719,1723938639442,-163.06,0.00010887,2]
[335178720,1723938639451,-1924.34,0.00010887,2]
[335178721,1723938639460,-1924.34,0.00010887,2]
[335178722,1723938639469,-500.0,0.00010887,2]
[335178723,1723938639478,-500.0,0.00010887,2]
[335178724,1723938639487,-2522.48,0.00010887,2]
[335178725,1723938639496,-2522.48,0.00010887,2]
[335178726,1723938639506,-500.0,0.00010887,2]
[335178727,1723938639515,-500.0,0.00010887,2]
[335178728,1723938639525,-500.0,0.00010887,2]
[335178729,1723938639534,-500.0,0.00010887,2]
[335178730,1723938639543,-1990.8578412,0.00010887,2]
[335178731,1723938639555,-2500.0621588,0.00010887,2]
[335178732,1723938639565,-4490.92,0.00010887,2]
[335178733,1723938639574,-500.0,0.00010887,2]
[335178734,1723938639583,-500.0,0.00010887,2]
[335178735,1723938639592,-7532.13,0.00010887,2]
[335178736,1723938639602,-500.0,0.00010887,2]
[335178737,1723938639612,-4023.77431695,0.00010887,2]
[335178738,1723938639623,-435.35854429,0.00010887,2]
[335178739,1723938639636,-453.0,0.00010887,2]
[335178740,1723938639647,-664.7658,0.00010887,2]
[335178741,1723938639661,-703.20536157,0.00010887,2]
[335178742,1723938639673,-1252.02597719,0.00010887,2]
[335178743,1723938639682,-500.0,0.00010887,2]
[335178744,1723938639692,-13303.71,0.00010887,2]
[335178745,1723938639701,-13303.71,0.00010887,2]
[335178746,1723938639710,-576.19,0.00010887,2]
[335178747,1723938639719,-576.19,0.00010887,2]
[335178748,1723938639729,-3441.66,0.00010887,2]
[335178749,1723938639738,-3441.66,0.00010887,2]
[335178750,1723938639748,-500.0,0.00010887,2]
[335178751,1723938639757,-445.58580991,0.00010887,2]
[335178752,1723938639766,-1220.77,0.00010887,2]
[335178753,1723938639775,-1220.77,0.00010887,2]
[335178754,1723938639785,-566.17,0.00010887,2]
[335178755,1723938639794,-566.17,0.00010887,2]
[335178756,1723938639804,-1210.85,0.00010887,2]
[335178757,1723938639813,-1210.85,0.00010887,2]
[335178758,1723938639822,-845.66,0.00010887,2]
[335178759,1723938639831,-845.66,0.00010887,2]
[335178760,1723938639840,-9572.03,0.00010887,2]
[335178761,1723938639849,-9572.03,0.00010887,2]
[335178762,1723938639858,-500.0,0.00010887,2]
[335178763,1723938639867,-500.0,0.00010887,2]
[335178764,1723938639876,-3077.36,0.00010887,2]
[335178765,1723938639886,-3077.36,0.00010887,2]
[335178766,1723938639895,-1979.46,0.00010887,2]
[335178767,1723938639904,-1979.46,0.00010887,2]
[335178768,1723938639914,-4042.83,0.00010887,2]
[335178769,1723938639923,-4042.83,0.00010887,2]
[335178770,1723938639933,-3746.63,0.00010887,2]
[335178771,1723938639942,-3746.63,0.00010887,2]
[335178772,1723938639951,-2036.02,0.00010887,2]
[335178773,1723938639960,-2036.02,0.00010887,2]
[335178774,1723938639969,-500.0,0.00010887,2]
[335178775,1723938639978,-500.0,0.00010887,2]
[335178776,1723938639987,-500.0,0.00010887,2]
[335178777,1723938639996,-500.0,0.00010887,2]
[335178778,1723938640005,-17984.22,0.00010887,2]
[335178779,1723938640014,-17984.22,0.00010887,2]
[335178780,1723938640023,-1617.06,0.00010887,2]
[335178781,1723938640032,-1617.06,0.00010887,2]
[335178782,1723938640042,-2611.93,0.00010887,2]
[335178783,1723938640051,-2611.93,0.00010887,2]
[335178784,1723938640060,-16014.05,0.00010887,2]
[335178785,1723938640069,-16014.05,0.00010887,2]
[335178786,1723938640078,-1714.92,0.00010887,2]
[335178787,1723938640087,-1714.92,0.00010887,2]
[335178788,1723938640096,-1970.74,0.00010887,2]
[335178789,1723938640105,-1970.74,0.00010887,2]
[335178790,1723938640114,-500.0,0.00010887,2]
[335178791,1723938640123,-668.88,0.00010887,2]
[335178792,1723938640132,-668.88,0.00010887,2]
[335178793,1723938640141,-500.0,0.00010887,2]
[335178794,1723938640150,-268.54590872,0.00010887,2]
[335178795,1723938640159,-1950.21,0.00010887,2]
[335178796,1723938640167,-1950.21,0.00010887,2]
[335178797,1723938640176,-500.0,0.00010887,2]
[335178798,1723938640185,-500.0,0.00010887,2]
[335178799,1723938640194,-500.0,0.00010887,2]
[335178800,1723938640203,-500.0,0.00010887,2]
[335178801,1723938640212,-2693.3,0.00010887,2]
[335178802,1723938640221,-2693.3,0.00010887,2]
[335178803,1723938640230,-500.0,0.00010887,2]
[335178804,1723938640239,-500.0,0.00010887,2]
[335178805,1723938640248,-500.0,0.00010887,2]
[335178806,1723938640258,-500.0,0.00010887,2]
[335178807,1723938640267,-500.0,0.00010887,2]
[335178808,1723938640276,-500.0,0.00010887,2]
[335178809,1723938640285,-1024.77,0.00010887,2]
[335178810,1723938640294,-1024.77,0.00010887,2]
[335178811,1723938640303,-2034.89,0.00010887,2]
[335178812,1723938640312,-4875.63,0.00010887,2]
[335178813,1723938640322,-4875.63,0.00010887,2]
[335178814,1723938640332,-2393.74,0.00010887,2]
[335178815,1723938640341,-2393.74,0.00010887,2]
[335178816,1723938640350,-5856.34,0.00010887,2]
[335178817,1723938640360,-5856.34,0.00010887,2]
[335178818,1723938640369,-1096.0,0.00010888,2]
[335178819,1723938640379,-500.0,0.00010888,2]
[335178820,1723938640389,-500.0,0.00010888,2]
[335178821,1723938640399,-500.0,0.00010888,2]
[335178822,1723938640408,-500.0,0.00010888,2]
[335178823,1723938640418,-500.0,0.00010888,2]
[335178824,1723938640427,-500.0,0.00010888,2]
[335178825,1723938640439,-500.0,0.00010888,2]
[335178826,1723938640451,-500.0,0.00010888,2]
[335178827,1723938640462,-584.37,0.00010888,2]
[335178828,1723938640471,-500.0,0.00010888,2]
[335178829,1723938640481,-1098.1,0.00010888,2]
[335178830,1723938640491,-595.07,0.00010888,2]
[335178831,1723938640500,-500.0,0.00010888,2]
[335178832,1723938640511,-1286.49,0.00010888,2]
[335178833,1723938640521,-1286.49,0.00010888,2]
[335178834,1723938640529,-590.69,0.00010888,2]
[335178835,1723938640538,-1286.49,0.00010888,2]
[335178836,1723938640549,-500.0,0.00010888,2]
[335178837,1723938640558,-581.35,0.00010888,2]
[335178838,1723938640567,-500.0,0.00010888,2]
[335178839,1723938640577,-500.0,0.00010888,2]
[335178841,1723938640588,-500.0,0.00010888,2]
[335178843,1723938640599,-500.0,0.00010888,2]
[335178845,1723938640608,-500.0,0.00010888,2]
[335178847,1723938640619,-500.0,0.00010888,2]
[335178848,1723938640628,-1924.34,0.00010888,2]
[335178849,1723938640638,-544.63,0.00010888,2]
[335178850,1723938640647,-2522.48,0.00010888,2]
[335178851,1723938640656,-500.0,0.00010888,2]
[335178852,1723938640665,-500.0,0.00010888,2]
[335178853,1723938640674,-500.0,0.00010888,2]
[335178854,1723938640683,-500.0,0.00010888,2]
[335178855,1723938640692,-4490.92,0.00010888,2]
[335178856,1723938640702,-7532.13,0.00010888,2]
[335178857,1723938640712,-13303.71,0.00010888,2]
[335178858,1723938640722,-3441.66,0.00010888,2]
[335178859,1723938640731,-1210.85,0.00010888,2]
[335178860,1723938640740,-9572.03,0.00010888,2]
[335178861,1723938640750,-500.0,0.00010888,2]
[335178862,1723938640760,-3077.36,0.00010888,2]
[335178863,1723938640770,-3746.63,0.00010888,2]
[335178865,1723938640779,-17984.22,0.00010888,2]
[335178867,1723938640789,-2611.93,0.00010888,2]
[335178869,1723938640800,-16014.05,0.00010888,2]
[335178871,1723938640811,-1714.92,0.00010888,2]
[335178873,1723938640821,-500.0,0.00010888,2]
[335178875,1723938640830,-668.88,0.00010888,2]
[335178877,1723938640839,-614.22,0.00010888,2]
[335178880,1723938640850,-500.0,0.00010888,2]
[335178882,1723938640860,-2034.89,0.00010888,2]
[335178884,1723938640869,-500.0,0.00010889,2]
[335178886,1723938640880,-500.0,0.00010889,2]
[335178888,1723938640890,-326.62952077,0.00010889,2]
[335178890,1723938640901,-459.63737827,0.00010889,2]
[335178892,1723938640911,-500.0,0.00010889,2]
[335178894,1723938640923,-500.0,0.00010889,2]
[335178896,1723938640932,-584.37,0.00010889,2]
[335178898,1723938640942,-500.0,0.00010889,2]
[335178900,1723938640952,-1098.1,0.00010889,2]
[335178902,1723938640963,-1286.49,0.00010889,2]
[335178904,1723938640972,-1286.49,0.00010889,2]
[335178906,1723938640985,-500.0,0.00010889,2]
[335178908,1723938640997,-581.35,0.00010889,2]
[335178910,1723938641007,-255.75,0.00010889,2]
[335178912,1723938641015,-1924.34,0.00010889,2]
[335178914,1723938641024,-2522.48,0.00010889,2]
[335178917,1723938641034,-4490.92,0.00010889,2]
[335178919,1723938641054,-7532.13,0.00010889,2]
[335178921,1723938641064,-13303.71,0.00010889,2]
[335178923,1723938641073,-3441.66,0.00010889,2]
[335178925,1723938641084,-1210.85,0.00010889,2]
[335178927,1723938641095,-9572.03,0.00010889,2]
[335178929,1723938641104,-500.0,0.00010889,2]
[335178931,1723938641115,-3077.36,0.00010889,2]
[335178933,1723938641126,-3746.63,0.00010889,2]
[335178935,1723938641136,-17984.22,0.00010889,2]
[335178937,1723938641146,-2611.93,0.00010889,2]
[335178939,1723938641155,-16014.05,0.00010889,2]
[335178941,1723938641164,-1714.92,0.00010889,2]
[335178943,1723938641173,-668.88,0.00010889,2]
[335178945,1723938641183,-500.0,0.00010889,2]
[335178947,1723938641192,-1427.77589573,0.0001089,2]
[335178949,1723938641201,-170.5756834,0.0001089,2]
[335178950,1723938641210,-1286.49,0.0001089,2]
[335178952,1723938641219,-295.44184782,0.00010892,2]
[335178954,1723938641228,-2688.23706644,0.00010892,2]
[335178956,1723938641237,-500.0,0.00010897,2]
[335178958,1723938641246,-500.0,0.00010897,2]
[335178960,1723938641256,-595.07,0.00010897,2]
[335178962,1723938641266,-500.0,0.00010897,2]
[335178964,1723938641275,-590.69,0.00010897,2]
[335178966,1723938641286,-500.0,0.00010897,2]
[335178968,1723938641295,-500.0,0.00010897,2]
[335178970,1723938641305,-500.0,0.00010897,2]
[335178972,1723938641315,-500.0,0.00010897,2]
[335178974,1723938641325,-551.48,0.00010897,2]
[335178976,1723938641335,-500.0,0.00010897,2]
[335178978,1723938641346,-500.0,0.00010897,2]
[335178980,1723938641356,-576.19,0.00010897,2]
[335178982,1723938641365,-1220.77,0.00010897,2]
[335178984,1723938641375,-566.17,0.00010897,2]
[335178986,1723938641384,-845.66,0.00010897,2]
[335178988,1723938641393,-1979.46,0.00010897,2]
[335178990,1723938641402,-4042.83,0.00010897,2]
[335178992,1723938641410,-2036.02,0.00010897,2]
[335178994,1723938641420,-500.0,0.00010897,2]
[335178996,1723938641429,-1617.06,0.00010897,2]
[335178998,1723938641439,-1970.74,0.00010897,2]
[335179000,1723938641448,-174.83539434,0.00010897,2]
[335179002,1723938641457,-1950.21,0.00010897,2]
[335179004,1723938641466,-2693.3,0.00010897,2]
[335179006,1723938641475,-500.0,0.00010897,2]
[335179008,1723938641484,-500.0,0.00010897,2]
[335179010,1723938641493,-500.0,0.00010897,2]
[335179012,1723938641503,-1024.77,0.00010897,2]
[335179014,1723938641512,-4875.63,0.00010897,2]
[335179016,1723938641521,-2393.74,0.00010897,2]
[335179018,1723938641530,-5856.34,0.00010897,2]
[335179020,1723938641540,-500.0,0.00010898,2]
[335179022,1723938641549,-500.0,0.00010898,2]
[335179024,1723938641559,-1711.09467399,0.00010899,2]
[335179026,1723938641568,-500.32458037,0.00010899,2]
[335179027,1723938641577,-500.0,0.00010899,2]
[335179029,1723938641586,-500.0,0.00010899,2]
[335179031,1723938641595,-500.0,0.00010899,2]
[335179032,1723938641604,-584.37,0.00010899,2]
[335179033,1723938641613,-500.0,0.00010899,2]
[335179034,1723938641622,-1098.1,0.00010899,2]
[335179035,1723938641631,-1286.49,0.00010899,2]
[335179036,1723938641640,-500.0,0.00010899,2]
[335179037,1723938641650,-581.35,0.00010899,2]
[335179038,1723938641659,-1293.96377084,0.00010899,2]
[335179039,1723938641668,-1293.96377079,0.00010899,2]
[335179041,1723938641677,-1293.96377079,0.00010899,2]
[335179043,1723938641686,-1293.96377079,0.00010899,2]
[335179045,1723938641695,-1293.96377079,0.00010899,2]
[335179047,1723938641705,-1293.96377079,0.00010899,2]
[335179049,1723938641714,-1293.96377079,0.00010899,2]
[335179051,1723938641724,-1293.96377079,0.00010899,2]
[335179053,1723938641733,-1293.96377079,0.00010899,2]
[335179055,1723938641743,-1924.34,0.00010899,2]
[335179056,1723938641752,-2522.48,0.00010899,2]
[335179058,1723938641762,-4490.92,0.00010899,2]
[335179060,1723938641771,-7532.13,0.00010899,2]
[335179062,1723938641780,-13303.71,0.00010899,2]
[335179064,1723938641789,-3441.66,0.00010899,2]
[335179066,1723938641799,-1210.85,0.00010899,2]
[335179068,1723938641808,-9572.03,0.00010899,2]
[335179070,1723938641817,-500.0,0.00010899,2]
[335179072,1723938641826,-3077.36,0.00010899,2]
[335179074,1723938641835,-3746.63,0.00010899,2]
[335179076,1723938641844,-17984.22,0.00010899,2]
[335179077,1723938641853,-2611.93,0.00010899,2]
[335179079,1723938641863,-16014.05,0.00010899,2]
[335179081,1723938641872,-1714.92,0.00010899,2]
[335179083,1723938641880,-668.88,0.00010899,2]
[335179085,1723938641890,-500.0,0.00010899,2]
[335179087,1723938641900,-14912.87442439,0.000109,2]
[335179089,1723938641911,-184.6557506,0.000109,2]
[335179091,1723938641920,-1293.96377079,0.000109,2]
[335179093,1723938641930,-1711.09467399,0.000109,2]
[335179095,1723938641939,-441.6,0.000109,2]
[335179097,1723938641949,-151.0,0.00010901,2]
[335179099,1723938641959,-151.0,0.00010917,2]
[335179101,1723938641968,-151.0,0.00010917,2]
[335179103,1723938641977,-500.0,0.00010925,2]
[335179105,1723938641987,-238.55941914,0.00010925,2]
[335179107,1723938641996,-595.07,0.00010925,2]
[335179109,1723938642005,-500.0,0.00010925,2]
[335179110,1723938642014,-590.69,0.00010925,2]
[335179111,1723938642023,-500.0,0.00010925,2]
[335179112,1723938642032,-500.0,0.00010925,2]
[335179113,1723938642041,-590.09,0.00010925,2]
[335179114,1723938642050,-500.0,0.00010925,2]
[335179115,1723938642059,-500.0,0.00010925,2]
[335179116,1723938642069,-2034.89,0.00010925,2]
[335179117,1723938642078,-1543.0,0.00010926,2]
[335179118,1723938642087,-2018.759,0.00010926,2]
[335179119,1723938642096,-622.0,0.00010926,2]
[335179120,1723938642109,-1257.0,0.00010926,2]
[335179121,1723938642119,-446.0,0.00010926,2]
[335179122,1723938642128,-813.0,0.00010926,2]
[335179123,1723938642138,-150.0,0.00010926,2]
[335179124,1723938642153,-1137.0,0.00010926,2]
[335179125,1723938642162,-556.0,0.00010926,2]
[335179126,1723938642172,-1896.0,0.00010926,2]
[335179127,1723938642181,-551.0,0.00010926,2]
[335179128,1723938642190,-150.0,0.00010926,2]
[335179129,1723938642199,-1171.0,0.00010926,2]
[335179130,1723938642209,-247.0,0.00010926,2]
[335179131,1723938642219,-3318.0,0.00010926,2]
[335179132,1723938642229,-764.0,0.00010926,2]
[335179133,1723938642238,-5844.0,0.00010926,2]
[335179134,1723938642247,-3726.0,0.00010926,2]
[335179135,1723938642256,-289.0,0.00010926,2]
[335179136,1723938642265,-1205.0,0.00010926,2]
[335179137,1723938642275,-21769.0,0.00010926,2]
[335179138,1723938642284,-1673.0,0.00010926,2]
[335179139,1723938642294,-1500.0,0.00010935,2]
[335179140,1723938642303,-151.0,0.00010947,2]
[335179141,1723938642312,-151.0,0.00010947,2]
[335179142,1723938642321,-151.0,0.00010947,2]
[335179143,1723938642330,-151.0,0.00010947,2]
[335179144,1723938642340,-500.0,0.00010958,2]
[335179145,1723938642349,-500.0,0.00010958,2]
[335179146,1723938642359,-500.0,0.00010958,2]
[335179147,1723938642368,-500.0,0.00010958,2]
[335179148,1723938642378,-500.0,0.00010958,2]
[335179149,1723938642387,-500.0,0.00010958,2]
[335179150,1723938642397,-500.0,0.00010958,2]
[335179151,1723938642406,-334.24242077,0.00010958,2]
[335179152,1723938642415,-425.65200183,0.00010958,2]
[335179153,1723938642425,-259.36026898,0.00010958,2]
[335179154,1723938642434,-213.96133354,0.00010958,2]
[335179155,1723938642443,-150.0,0.00010959,2]
[335179156,1723938642453,-2000.0,0.00010959,2]
[335179157,1723938642462,-988.32,0.00010959,2]
[335179158,1723938642471,-250.0,0.00010959,2]
[335179159,1723938642480,-823.6,0.00010959,2]
[335179160,1723938642490,-686.33,0.00010959,2]
[335179161,1723938642499,-571.94,0.00010959,2]
[335179162,1723938642509,-476.62,0.00010959,2]
[335179163,1723938642518,-3100.0,0.00010964,2]
[335179164,1723938642527,-200.0,0.00010973,2]
[335179165,1723938642536,-500.0,0.00010987,2]
[335179166,1723938642546,-500.0,0.00010987,2]
[335179167,1723938642555,-576.19,0.00010987,2]
[335179168,1723938642564,-1220.77,0.00010987,2]
[335179170,1723938642574,-566.17,0.00010987,2]
[335179172,1723938642583,-845.66,0.00010987,2]
[335179173,1723938642592,-1979.46,0.00010987,2]
[335179174,1723938642602,-4042.83,0.00010987,2]
[335179175,1723938642611,-2036.02,0.00010987,2]
[335179176,1723938642621,-207.72477301,0.00010987,2]
[335179177,1723938642630,-1617.06,0.00010987,2]
[335179178,1723938642641,-1970.74,0.00010987,2]
[335179179,1723938642650,-1950.21,0.00010987,2]
[335179180,1723938642660,-2693.3,0.00010987,2]
[335179181,1723938642669,-500.0,0.00010987,2]
[335179182,1723938642861,-500.0,0.00010987,2]
[335179184,1723938642871,-500.0,0.00010987,2]
[335179186,1723938642880,-1024.77,0.00010987,2]
[335179188,1723938642890,-4875.63,0.00010987,2]
[335179190,1723938642899,-2393.74,0.00010987,2]
[335179192,1723938642908,-5856.34,0.00010987,2]
[335179194,1723938642919,-151.0,0.00010988,2]
[335179196,1723938642928,-299.39,0.00010988,2]
[335179198,1723938642937,-500.0,0.00010988,2]
[335179200,1723938642946,-21081.34701,0.00010988,2]
[335179201,1723938642955,-151.0,0.00010989,2]
[335179202,1723938642965,-151.0,0.00010989,2]
[335179203,1723938642974,-151.0,0.00010989,2]
[335179204,1723938642983,-327.14938,0.00010989,2]
[335179205,1723938642992,-327.14938,0.00010989,2]
[335179206,1723938643003,-500.0,0.00010991,2]
[335179207,1723938643013,-395.1371935,0.00010991,2]
[335179208,1723938643022,-500.0,0.00010991,2]
[335179209,1723938643031,-500.0,0.00010991,2]
[335179210,1723938643040,-584.37,0.00010991,2]
[335179211,1723938643049,-500.0,0.00010991,2]
[335179212,1723938643058,-1098.1,0.00010991,2]
[335179213,1723938643067,-595.07,0.00010991,2]
[335179214,1723938643076,-500.0,0.00010991,2]
[335179215,1723938643086,-590.69,0.00010991,2]
[335179216,1723938643095,-447.41,0.00010991,2]
[335179217,1723938643104,-581.35,0.00010991,2]
[335179218,1723938643113,-500.0,0.00010991,2]
[335179219,1723938643122,-500.0,0.00010991,2]
[335179220,1723938643134,-500.0,0.00010991,2]
[335179221,1723938643143,-1924.34,0.00010991,2]
[335179222,1723938643152,-2522.48,0.00010991,2]
[335179223,1723938643162,-4490.92,0.00010991,2]
[335179224,1723938643172,-500.0,0.00010991,2]
[335179225,1723938643181,-500.0,0.00010991,2]
[335179226,1723938643190,-7532.13,0.00010991,2]
[335179227,1723938643200,-13303.71,0.00010991,2]
[335179228,1723938643209,-576.19,0.00010991,2]
[335179229,1723938643218,-3441.66,0.00010991,2]
[335179230,1723938643227,-1220.77,0.00010991,2]
[335179231,1723938643237,-566.17,0.00010991,2]
[335179233,1723938643246,-1210.85,0.00010991,2]
[335179235,1723938643255,-845.66,0.00010991,2]
[335179237,1723938643264,-9572.03,0.00010991,2]
[335179239,1723938643273,-500.0,0.00010991,2]
[335179241,1723938643282,-3077.36,0.00010991,2]
[335179243,1723938643293,-1979.46,0.00010991,2]
[335179244,1723938643303,-4042.83,0.00010991,2]
[335179245,1723938643313,-3746.63,0.00010991,2]
[335179246,1723938643322,-2036.02,0.00010991,2]
[335179247,1723938643331,-17984.22,0.00010991,2]
[335179248,1723938643341,-1617.06,0.00010991,2]
[335179249,1723938643350,-2611.93,0.00010991,2]
[335179250,1723938643360,-16014.05,0.00010991,2]
[335179251,1723938643369,-1714.92,0.00010991,2]
[335179253,1723938643378,-1970.74,0.00010991,2]
[335179255,1723938643389,-500.0,0.00010991,2]
[335179256,1723938643398,-668.88,0.00010991,2]
[335179257,1723938643407,-1950.21,0.00010991,2]
[335179258,1723938643416,-500.0,0.00010991,2]
[335179259,1723938643424,-2693.3,0.00010991,2]
[335179260,1723938643434,-500.0,0.00010991,2]
[335179261,1723938643444,-500.0,0.00010991,2]
[335179262,1723938643453,-500.0,0.00010991,2]
[335179263,1723938643462,-1024.77,0.00010991,2]
[335179264,1723938643471,-2034.89,0.00010991,2]
[335179265,1723938643480,-4875.63,0.00010991,2]
[335179266,1723938643489,-2393.74,0.00010991,2]
[335179267,1723938643498,-151.0,0.00010992,2]
[335179269,1723938643507,-151.0,0.00010992,2]
[335179271,1723938643517,-948.933686,0.00010992,2]
[335179272,1723938643526,-948.933686,0.00010992,2]
[335179273,1723938643534,-448.795564,0.00010992,2]
[335179274,1723938643543,-448.795564,0.00010992,2]
[335179275,1723938643552,-151.0,0.00010992,2]
[335179276,1723938643561,-151.0,0.00010992,2]
[335179277,1723938643572,-385.811101,0.00010992,2]
[335179278,1723938643583,-151.0,0.00010992,2]
[335179279,1723938643592,-647.023336,0.00010992,2]
[335179280,1723938643602,-647.023336,0.00010992,2]
[335179281,1723938643614,-500.0,0.00010992,2]
[335179282,1723938643625,-27380.7068853,0.00010992,2]
[335179283,1723938643635,-33680.0667606,0.00010992,2]
[335179284,1723938643644,-39979.4266359,0.00010992,2]
[335179285,1723938643653,-46278.7865111,0.00010992,2]
[335179286,1723938643663,-52578.1463864,0.00010992,2]
[335179287,1723938643674,-1286.49,0.00010993,2]
[335179288,1723938643683,-1611.1654807,0.00010994,2]
[335179289,1723938643693,-946.5598042,0.00010994,2]
[335179290,1723938643702,-500.0,0.00010996,2]
[335179291,1723938643713,-500.0,0.00010996,2]
[335179292,1723938643722,-576.19,0.00010996,2]
[335179293,1723938643731,-1220.77,0.00010996,2]
[335179294,1723938643741,-566.17,0.00010996,2]
[335179295,1723938643750,-845.66,0.00010996,2]
[335179296,1723938643759,-1979.46,0.00010996,2]
[335179297,1723938643768,-4042.83,0.00010996,2]
[335179298,1723938643777,-2036.02,0.00010996,2]
[335179299,1723938643787,-1617.06,0.00010996,2]
[335179300,1723938643796,-1970.74,0.00010996,2]
[335179301,1723938643806,-500.0,0.00010996,2]
[335179302,1723938643818,-500.0,0.00010996,2]
[335179303,1723938643829,-500.0,0.00010996,2]
[335179304,1723938643840,-500.0,0.00010996,2]
[335179305,1723938643850,-1950.21,0.00010996,2]
[335179306,1723938643861,-2693.3,0.00010996,2]
[335179307,1723938643870,-500.0,0.00010996,2]
[335179308,1723938643880,-500.0,0.00010996,2]
[335179309,1723938643892,-500.0,0.00010996,2]
[335179310,1723938643901,-1024.77,0.00010996,2]
[335179311,1723938643910,-2034.89,0.00010996,2]
[335179312,1723938643919,-2034.89,0.00010996,2]
[335179313,1723938643928,-4875.63,0.00010996,2]
[335179314,1723938643937,-2034.89,0.00010996,2]
[335179315,1723938643946,-2034.89,0.00010996,2]
[335179316,1723938643955,-2393.74,0.00010996,2]
[335179317,1723938643964,-500.0,0.00010997,2]
[335179318,1723938643974,-500.0,0.00010997,2]
[335179319,1723938643983,-161.75958498,0.00010997,2]
[335179320,1723938643992,-500.0,0.00010997,2]
[335179321,1723938644003,-245.46827625,0.00010997,2]
[335179322,1723938644012,-492.16129089,0.00010997,2]
[335179323,1723938644025,-584.37,0.00010997,2]
[335179324,1723938644034,-584.37,0.00010997,2]
[335179325,1723938644044,-584.37,0.00010997,2]
[335179326,1723938644054,-584.37,0.00010997,2]
[335179327,1723938644063,-584.37,0.00010997,2]
[335179328,1723938644072,-584.37,0.00010997,2]
[335179329,1723938644082,-584.37,0.00010997,2]
[335179330,1723938644091,-584.37,0.00010997,2]
[335179331,1723938644100,-500.0,0.00010997,2]
[335179332,1723938644109,-500.0,0.00010997,2]
[335179333,1723938644120,-500.0,0.00010997,2]
[335179334,1723938644130,-500.0,0.00010997,2]
[335179335,1723938644141,-500.0,0.00010997,2]
[335179336,1723938644150,-500.0,0.00010997,2]
[335179337,1723938644160,-500.0,0.00010997,2]
[335179338,1723938644169,-500.0,0.00010997,2]
[335179339,1723938644178,-1098.1,0.00010997,2]
[335179340,1723938644188,-1098.1,0.00010997,2]